[Event "FIJ Cannes 2024"]
[Site "Cannes"]
[Date "2024.02.20"]
[Round "2.1"]
[White "Raahul V S"]
[Black "Puranik, Abhimanyu"]
[Result "0-1"]
[ECO "A28"]
[WhiteElo "2356"]
[BlackElo "2645"]
[Annotator "TA"]
[PlyCount "68"]
[EventDate "2024.02.20"]
[EventType "swiss"]
[EventCountry "FRA"]
[SourceTitle "playchess.com"]
[Source "ChessBase"]
[SourceQuality "1"]
[TimeControl "40/5400+30:1800+30"]

{[%evp 10,68,18,0,6,4,0,0,0,0,0,0,3,0,25,0,0,0,-5,-14,0,-29,-16,-71,-41,-45,-39,-39,-37,-52,33,-19,-21,-27,-34,-24,91,77,165,164,182,185,187,193,220,221,225,220,235,223,222,124,161,152,238,-318,-324,-1012,-1029,-1287,-1252]} 1. c4 {[%emt 0:00:12]} e5 {[%emt 1:31:00]} 2. Nc3 {[%emt 0:00:22]} Nf6 {[%emt 0:00:30]} 3. Nf3 {[%emt 1:31:26]} Nc6 {[%emt 0:00:30]} 4. e3 {[%emt 0:00:30]} Bb4 {[%emt 0:00:30]} 5. Qc2 {[%emt 0:00:00]} Bxc3 {[%emt 0:00:30]} 6. bxc3 {[%emt 0:00:00]} d6 {[%emt 0:00:30]} 7. e4 $1 {[%emt 0:00:00]} O-O {[%emt 0:00:30]} 8. g3 {[%emt 0:00:00]} h6 {[%emt 0:00:30] The position is equal.} 9. Bg2 {[%emt 0:00:00]} Be6 {[%emt 0:00:30]} 10. d3 {[%emt 0:00:00][%cal Bd2d3,Bd3d4,Bd4d5][%mdl 32]} Nh7 {[%emt 0:00:30]} 11. Nh4 {[%emt 0:00:00]} Ne7 {[%emt 0:00:30]} 12. O-O {[%emt 0:00:00]} Qd7 {[%emt 0:00:30]} 13. Qe2 {[%emt 0:00:00]} Rae8 {[%emt 0:00:30]} 14. d4 {[%emt 0:00:00]} Qa4 {[%emt 0:00:30]} 15. d5 {[%emt 0:00:00]} Bc8 {[%emt 0:00:30]} 16. g4 {[%emt 0:00:00]} (16. c5 $11) 16... b6 {[%emt 0:00:30]} 17. Re1 {[%emt 0:00:00]} Ba6 {[%emt 0:00:00]} 18. Bf1 {[%emt 0:00:00]} c6 {[%emt 0:01:00]} 19. Qd1 {[%emt 0:00:00]} Qa5 {[%emt 0:00:30]} (19... Qxd1 $15 20. Rxd1 cxd5) 20. Qb3 {[%emt 0:00:00]} (20. dxc6 $1 $14 Nxc6 21. Re3) 20... cxd5 $11 {[%emt 0:00:30]} 21. exd5 {[%emt 0:00:00] Ba3 would now be deadly.} Qc5 {[%emt 0:00:30]} 22. Ba3 {[%emt 0:00:00]} Qc7 {[%emt 0:00:30]} (22... Qc8 $1 $11 23. h3 Qd7) 23. c5 $1 $36 {[%emt 0:00:00][%mdl 2048] Black is under strong pressure.} bxc5 {[%emt 0:00:30]} 24. Bxa6 $18 {[%emt 0:00:00]} Rb8 {[%emt 0:00:30] [#]} 25. Qc2 {[%emt 0:00:00]} Nxd5 {[%emt 0:00:30][%cal Be7d5,Bd5f6,Bf6g4][%mdl 32]} 26. Bf1 {[%emt 0:00:00]} Ng5 {[%emt 0:00:00]} 27. Bc1 {[%emt 0:00:00]} Ne6 {[%emt 0:01:00]} 28. Bc4 {[%emt 0:00:00]} Nf6 {[%emt 0:00:30]} 29. Qf5 {[%emt 0:00:00]} d5 {[%emt 0:00:30]} 30. Bb3 {[%emt 0:00:00]} ({Only move:} 30. Bf1 $18) 30... Qa5 {[%emt 0:00:30] ...Rxb3 is the strong threat.} 31. Bxh6 {[%emt 0:13:30]} (31. Qxe5 Rxb3 (31... Nxg4 32. Qxd5 Qxc3 33. Be3 $16) 32. g5 Ng4 (32... Rxc3 $2 33. gxf6 Rh3 34. fxg7 $18) 33. axb3 Qxa1 $11) (31. Rxe5 Qxc3 (31... Rxb3 32. Rxe6 fxe6 33. Qxe6+ Rf7 34. Qc8+ Kh7 35. g5 $11) 32. Rb1 Nd4 $17) 31... Qxc3 {[%emt 0:00:30] [#]} (31... c4 $16) 32. Rac1 $4 {[%emt 0:00:00][%mdl 8192]} ({Inferior is} 32. Qxe5 Qxe5 33. Rxe5 gxh6 $17) (32. Be3 $1 $18) 32... Qh3 $19 {[%emt 0:00:30]} 33. g5 {[%emt 0:01:00]} (33. Qxe5 Qxh4 34. Bd2) 33... Ng4 {[%emt 0:00:30]} (33... Qxh4 34. gxf6 Nd4 (34... gxh6 35. Bxd5 Kh8 36. Bxe6 $18) 35. Bg5 Nxf5 36. Bxh4 $11) 34. Bxd5 {[%emt 0:00:00]} Nd4 {[%emt 0:00:00] Weighted Error Value: White=0.82/Black=0.25 (precise) .  Missed win:     	White=1     	---        Mistake:       	White=4     	Black=4      Inaccurate:     	White=1     	Black=1      OK:         	White=11    	Black=9      Best:        	White=3     	Black=3      Strong:       	White=2     	---} 0-1

[Event "FIJ Cannes 2024"]
[Site "Cannes"]
[Date "2024.02.20"]
[Round "2.2"]
[White "Zeng, Chongsheng"]
[Black "Kacprzak, Karol"]
[Result "1-0"]
[ECO "B90"]
[WhiteElo "2597"]
[BlackElo "2322"]
[Annotator "TA"]
[PlyCount "71"]
[EventDate "2024.02.20"]
[EventType "swiss"]
[EventCountry "FRA"]
[SourceTitle "playchess.com"]
[Source "ChessBase"]
[SourceQuality "1"]
[TimeControl "40/5400+30:1800+30"]

{[%evp 15,71,13,37,27,19,7,18,27,10,0,52,57,60,45,60,49,52,16,26,23,60,0,0,0,0,16,6,18,23,25,17,15,14,21,52,0,64,10,5,0,0,0,0,0,0,0,14,-72,567,503,503,488,446,478,575,553,833,814]} 1. e4 {[%emt 0:01:10]} c5 {[%emt 0:02:11]} 2. Nf3 {[%emt 0:01:01]} d6 {[%emt 0:00:08]} 3. d4 {[%emt 0:00:11]} cxd4 {[%emt 0:00:06]} 4. Nxd4 {[%emt 0:00:04]} Nf6 {[%emt 0:00:10]} 5. Nc3 {[%emt 0:00:04]} a6 {[%emt 0:00:08]} 6. f3 {[%emt 0:00:35]} e5 {[%emt 0:02:02]} 7. Nb3 {[%emt 0:00:05]} Be6 {[%emt 0:00:07]} 8. Be3 {[%emt 0:00:05]} h5 {[%emt 0:00:10]} 9. Be2 {[%emt 0:00:14]} Nbd7 {[%emt 0:02:38]} 10. f4 {[%emt 0:00:16]} Qc7 {[%emt 0:08:28]} 11. f5 {[%emt 0:14:35] The position is equal.} Bc4 {[%emt 0:01:44]} 12. a4 {[%emt 0:09:28][%cal Ba2a4,Ba4a5][%mdl 32]} Rc8 {[%emt 0:13:29]} (12... d5 $11 13. Nxd5 (13. exd5 Bb4 $17) 13... Bxd5 14. exd5 Nb6) 13. Bxc4 $1 $14 {[%emt 0:20:27]} Qxc4 {[%emt 0:00:16]} 14. a5 $1 {[%emt 0:00:27]} Be7 {[%emt 0:09:06][%cal Od6d5]} (14... Nxe4 $2 15. Ra4 Qc6 16. Rxe4 $18) 15. Ra4 {[%emt 0:02:01]} Qc7 {[%emt 0:07:48]} 16. O-O {[%emt 0:01:51]} b5 {[%emt 0:07:17]} 17. axb6 {[%emt 0:03:09]} Nxb6 {[%emt 0:00:25]} 18. Bxb6 {[%emt 0:06:36]} Qxb6+ {[%emt 0:00:44]} 19. Kh1 {[%emt 0:00:02]} h4 {[%emt 0:05:38]} 20. h3 {[%emt 0:05:25]} Rxc3 {[%emt 0:12:54]} 21. bxc3 {[%emt 0:00:21] Qf3 is the strong threat.} Qc6 {[%emt 0:00:05][%csl LRa4,LRc3,LRe4]} 22. Qa1 {[%emt 0:08:45]} Nxe4 {[%emt 0:00:37]} 23. Rxa6 {[%emt 0:00:32]} Ng3+ {[%emt 0:00:42]} 24. Kg1 {[%emt 0:00:46]} Qc4 {[%emt 0:03:01] [#]} 25. f6 {[%emt 0:06:20]} (25. Ra8+ Bd8 $11) ({Better is} 25. Rf2 $1 $14) 25... gxf6 {[%emt 0:00:55]} (25... Qxf1+ 26. Qxf1 Nxf1 27. fxe7 Kxe7 28. Kxf1 $18) (25... Nxf1 $11 26. Na5 (26. fxe7 Ne3 $11) (26. fxg7 Rg8 $11) 26... Qf4 (26... Qxa6 27. Qa4+ Kf8 28. fxe7+ Kxe7 29. Nc6+ $16) 27. fxg7 Rg8 28. Ra8+ Kd7 (28... Bd8 $2 29. Nc6 $18) 29. Rxg8 Qh2+ 30. Kxf1 (30. Kf2 Qf4+ 31. Kg1 Qh2+ 32. Kxf1 Qh1+ 33. Kf2 Qxa1 $11) 30... Qh1+ 31. Kf2 Qxa1) 26. Ra8+ {[%emt 0:01:09]} (26. Re1 $1 $14 Ne2+ 27. Kh1 Ng3+ 28. Kh2) 26... Bd8 $132 {[%emt 0:00:11][%mdl 2048] Black is not holding back} 27. Rxf6 {[%emt 0:01:24]} Ke7 {[%emt 0:08:55]} 28. Rf3 $1 {[%emt 0:00:21] aiming for Qa7+.} (28. Rf2 $2 Bb6 29. Ra7+ (29. Rxh8 $2 Ne2+ 30. Kf1 Nf4+ 31. Kg1 Bxf2+ 32. Kh1 Ne2 $19) 29... Kf8 $17 (29... Bxa7 30. Qxa7+ Kf8 31. Qb8+ Kg7 32. Qxd6 $14) (29... Ke6 30. Nd4+ exd4 31. Rb7 $11) (29... Bxa7 30. Qxa7+ Kf8 31. Qb8+ Kg7 32. Qxd6 $11) (29... Ke6 30. Nd4+ exd4 31. Qe1+ Kd5 32. Rb7 $17)) 28... Bb6+ {[%emt 0:05:09]} 29. Kh2 {[%emt 0:00:07]} Rxa8 {[%emt 0:00:04]} 30. Qxa8 {[%emt 0:00:08] Na5 would now be deadly.} e4 {[%emt 0:00:50]} 31. Qb7+ {[%emt 0:03:04] [#]} (31. Rf4 $1 $11 {keeps the balance.} Bg1+ (31... Qxc3 $2 {is the wrong capture.} 32. Qb7+ Qc7 33. Qd5 $16) 32. Kxg1 Ne2+ (32... Qxc3 $2 {too greedy.} 33. Qb7+ Kd8 34. Rxe4 $18) 33. Kh2 Nxf4 34. Nd2 Qxc3 35. Qxe4+ Qe5 36. Qb7+ Kf8 37. Nf3) 31... Bc7 $2 {[%emt 0:00:20][%mdl 8192] Loses the game.} (31... Qc7 $1 $17 {[%cal Rc7b7] and life is bright.} 32. Qxc7+ Bxc7) 32. Nd2 {[%emt 0:02:10] White is clearly winning.} Qc5 {[%emt 0:01:27]} 33. Nxe4 {[%emt 0:00:22]} Nxe4 {[%emt 0:02:00]} 34. Qxe4+ {[%emt 0:00:02]} Kf8 {[%emt 0:00:10] White must now prevent ...d5+.} 35. Qxh4 {[%emt 0:02:19]} d5+ {[%emt 0:00:05]} 36. Kh1 {[%emt 0:00:36] Weighted Error Value: White=0.17 (very precise) /Black=0.31.  Loses game:     	---       	Black=1      Mistake:       	White=3     	Black=2      Inaccurate:     	White=2     	Black=2      OK:         	White=7     	Black=12     Best:        	White=4     	Black=2      Strong:       	White=3     	---} 1-0

[Event "FIJ Cannes 2024"]
[Site "Cannes"]
[Date "2024.02.20"]
[Round "2.3"]
[White "Breuil, Tristan"]
[Black "Sasikiran, Krishnan"]
[Result "0-1"]
[ECO "C84"]
[WhiteElo "2258"]
[BlackElo "2586"]
[Annotator "TA"]
[PlyCount "127"]
[EventDate "2024.02.20"]
[EventType "swiss"]
[EventCountry "FRA"]
[SourceTitle "playchess.com"]
[Source "ChessBase"]
[SourceQuality "1"]
[TimeControl "40/5400+30:1800+30"]

{[%evp 34,127,-9,-6,-14,-14,-8,-16,-9,-10,-18,-21,-13,-13,-18,-61,-64,-139,-129,-179,-168,-184,-186,-141,-62,-60,-63,-56,0,-10,-24,-60,-12,-149,-143,-242,-233,-216,-182,-256,-245,-262,-241,-281,-281,-278,-270,-266,0,-257,-256,-264,-244,-241,-236,-368,-360,-412,-402,-399,-389,-387,-369,-376,-321,-373,-371,-343,-315,-406,-370,-882,-882,-800,-780,-6213,-319,-319,-312,-312,-312,-297,-305,-319,-319,-319,-297,-290,-290,-290,-283,-297,-297,-293,-293,-224]} 1. e4 {[%emt 0:00:16]} e5 {[%emt 0:00:21]} 2. Nf3 {[%emt 0:00:15]} Nc6 {[%emt 0:00:16]} 3. Bb5 {[%emt 0:00:10]} a6 {[%emt 0:03:30]} 4. Ba4 {[%emt 0:00:14]} Nf6 {[%emt 0:02:54]} 5. O-O {[%emt 0:00:44]} Be7 {[%emt 0:00:47]} 6. d3 {[%emt 0:00:20]} b5 {[%emt 0:01:49]} 7. Bb3 {[%emt 0:00:09]} d6 {[%emt 0:01:49]} 8. c3 {[%emt 0:00:30]} O-O {[%emt 0:01:55]} 9. a4 {[%emt 0:00:31]} b4 {[%emt 0:03:01]} 10. a5 {[%emt 0:00:33]} bxc3 {[%emt 0:03:08]} 11. bxc3 {[%emt 0:03:07]} Rb8 {[%emt 0:02:15]} 12. Nbd2 {[%emt 0:11:29]} h6 {[%emt 0:07:40]} 13. Re1 {[%emt 0:03:00]} Re8 {[%emt 0:10:11]} 14. Bc4 {[%emt 0:12:48]} Bf8 {[%emt 0:04:25]} 15. h3 {[%emt 0:16:04]} Na7 {[%emt 0:11:51]} 16. d4 {[%emt 0:06:16]} Nb5 {[%emt 0:05:42]} 17. Qc2 {[%emt 0:06:29]} exd4 {[%emt 0:05:35]} 18. cxd4 {[%emt 0:03:13]} (18. Nxd4 Nxd4 19. cxd4 d5 $17) 18... d5 {[%emt 0:03:35]} 19. Bxb5 {[%emt 0:03:59]} Rxb5 {[%emt 0:01:35]} 20. e5 {[%emt 0:00:52]} Ne4 {[%emt 0:03:50]} 21. Nxe4 {[%emt 0:02:55]} dxe4 {[%emt 0:00:08]} 22. Qxe4 {[%emt 0:01:53]} Bb7 {[%emt 0:02:04]} 23. Qg4 {[%emt 0:01:33]} Re6 {[%emt 0:05:12]} 24. Qf4 {[%emt 0:15:13]} Bb4 {[%emt 0:05:57]} 25. Bd2 {[%emt 0:02:46]} (25. Rd1 $15) 25... Bxf3 $1 $17 {[%emt 0:01:28]} 26. Bxb4 {[%emt 0:01:28]} (26. gxf3 $17 Bxd2 27. Qxd2 Rexe5 28. Rxe5 Rxe5 29. Qf4 Rg5+ 30. Kh2) 26... Bxg2 $19 {[%emt 0:02:04]} (26... Rxb4 27. Qxf3 Rxd4 28. Rac1 $17) 27. Bd2 {[%emt 0:00:56]} Rg6 $1 {[%emt 0:07:09]} (27... Bxh3 28. Kh2 $11) 28. Kh2 {[%emt 0:00:05]} Bd5 {[%emt 0:01:05]} ({Black should play} 28... Rb3 $1 $17 {[%cal Rb3h3]} 29. Re3 Bb7) 29. Rg1 $15 {[%emt 0:00:48]} Rb3 {[%emt 0:01:35]} 30. Be3 $1 {[%emt 0:00:49]} Bb7 {[%emt 0:01:39]} (30... Kh8 $15) 31. Rxg6 {[%emt 0:04:08]} fxg6 {[%emt 0:00:05]} 32. e6 {[%emt 0:00:16]} (32. Rg1 {simplifies} Qe8 33. Qg4 Kh7 34. Rc1) 32... Qe7 {[%emt 0:01:14]} (32... Qd5 $15 33. Qf7+ (33. Qxc7 $2 Qg2#) 33... Kh7) 33. Rg1 {[%emt 0:02:22]} (33. Qf7+ $11 Qxf7 34. exf7+ Kxf7 35. Rc1) 33... Qxe6 $17 {[%emt 0:00:34]} 34. Qxc7 {[%emt 0:00:01]} (34. Qe5 $17 Qf7 35. Rc1) 34... Rb5 $19 {[%emt 0:00:31]} 35. d5 {[%emt 0:00:56]} Bxd5 {[%emt 0:00:31]} (35... Rxd5 $2 36. Qxb7 Qd6+ 37. Kg2 $18) 36. Bd4 {[%emt 0:00:45] [#]} (36. Re1 $142 Rb7 37. Qd8+ Kh7 38. Qh4 Qd6+ 39. Qg3) 36... Rb7 $1 $19 {[%emt 0:00:28]} 37. Qe5 {[%emt 0:00:09] [#]} Qf7 $1 {[%emt 0:00:28]} 38. Re1 {[%emt 0:00:53]} Kh7 {[%emt 0:00:22]} 39. Be3 {[%emt 0:00:33]} Qf3 {[%emt 0:00:39]} 40. Qg3 {[%emt 0:00:02]} Qf7 $2 {[%emt 0:00:26]} (40... Qe4 $19 {...Rf7 would now be deadly.} 41. Qg4 Qe5+ 42. Qg3 Qc3) 41. Qf4 $2 {[%emt 0:03:48][%mdl 8192]} (41. Qe5 $1 $11 {and White stays safe.} Re7 42. Qg3) 41... Qe6 {[%emt 0:06:19]} 42. Qg4 {[%emt 0:09:12]} Qd6+ {[%emt 0:04:34]} 43. Qf4 {[%emt 0:03:14]} Qa3 {[%emt 0:06:04]} 44. Rc1 {[%emt 0:12:11]} (44. Qe5 $142 Qxa5 45. Ra1) 44... Rf7 $19 {[%emt 0:03:24]} (44... Qxa5 45. Qd6 Be4 46. Qc5 $19) 45. Qd4 {[%emt 0:02:56]} Bb7 {[%emt 0:02:59]} (45... Qxa5 $2 {is the wrong capture.} 46. Rc5 Qd8 47. Rxd5 (47. Qxd5 Qb8+ 48. Qe5 Qf8 $18) 47... Qb8+ 48. Kg1 $18) 46. Ra1 {[%emt 0:00:53]} Qb3 {[%emt 0:02:00]} 47. Rg1 {[%emt 0:00:34]} Qa2 {[%emt 0:03:08]} 48. Qb6 {[%emt 0:01:37]} Qc2 {[%emt 0:01:18]} 49. Qc5 {[%emt 0:00:32]} Qe4 {[%emt 0:00:49]} 50. Qd4 {[%emt 0:00:18]} Qe6 {[%emt 0:00:38]} 51. Qg4 {[%emt 0:00:40]} Qc6 {[%emt 0:01:13]} 52. Rc1 $2 {[%emt 0:00:18]} (52. Qd4) 52... Rxf2+ $19 {[%emt 0:01:00]} 53. Bxf2 {[%emt 0:00:01]} Qxc1 {[%emt 0:00:08]} 54. Bb6 {[%emt 0:01:12]} Qc2+ $2 {[%emt 0:02:24]} (54... h5 55. Qg1 Qf4+ 56. Qg3 Qe4) 55. Kg1 $19 {[%emt 0:00:14]} g5 {[%emt 0:00:28]} 56. Qg3 {[%emt 0:00:22]} Qd1+ {[%emt 0:00:42]} 57. Kf2 {[%emt 0:00:06]} Qd2+ {[%emt 0:00:26]} 58. Kg1 {[%emt 0:00:21]} Be4 {[%emt 0:00:32]} 59. Qf2 {[%emt 0:00:56]} Qd7 {[%emt 0:00:58]} 60. Qd4 {[%emt 0:00:52]} Qf5 {[%emt 0:00:44]} (60... Qxh3 $2 {loses.} 61. Qxe4+ Kg8 62. Qa8+ Kh7 63. Qxa6 $18) 61. Qe3 {[%emt 0:00:18]} Bd5 {[%emt 0:00:44]} 62. Bd4 {[%emt 0:00:54]} Qb1+ {[%emt 0:00:15]} 63. Kf2 {[%emt 0:00:09]} Qa2+ {[%emt 0:00:20]} 64. Kf1 {[%emt 0:01:22]} 0-1

[Event "FIJ Cannes 2024"]
[Site "Cannes"]
[Date "2024.02.20"]
[Round "2.4"]
[White "Li, Di"]
[Black "Hercegovac, Neven"]
[Result "1-0"]
[ECO "B36"]
[WhiteElo "2563"]
[BlackElo "2301"]
[Annotator "TA"]
[PlyCount "111"]
[EventDate "2024.02.20"]
[EventType "swiss"]
[EventCountry "FRA"]
[SourceTitle "playchess.com"]
[Source "ChessBase"]
[SourceQuality "1"]
[TimeControl "40/5400+30:1800+30"]

{[%evp 30,111,43,34,36,23,40,35,66,53,41,29,63,47,42,37,46,33,37,30,38,45,40,38,46,28,51,51,68,66,64,64,65,42,66,70,200,39,35,39,81,85,122,124,124,124,166,168,178,177,245,207,264,239,267,281,295,261,431,421,597,592,1868,1791,1661,400,1965,1975,1933,1872,1409,1214,1747,1850,3175,2628,29982,29982,29984,29985,29985,29986,29986,29987]} 1. Nf3 {[%emt 0:05:49]} c5 {[%emt 0:00:44]} 2. c4 {[%emt 0:01:18]} g6 {[%emt 0:00:10]} 3. e4 {[%emt 0:02:28]} Nc6 {[%emt 0:01:51]} 4. d4 {[%emt 0:00:13]} cxd4 {[%emt 0:00:08]} 5. Nxd4 {[%emt 0:00:03]} Nf6 {[%emt 0:00:07]} 6. Nc3 {[%emt 0:00:18]} d6 {[%emt 0:00:05]} 7. Be2 {[%emt 0:00:45]} Nxd4 {[%emt 0:00:06]} 8. Qxd4 {[%emt 0:00:05]} Bg7 {[%emt 0:00:05]} 9. Bg5 {[%emt 0:04:19]} O-O {[%emt 0:01:35]} 10. Qe3 {[%emt 0:02:46]} Be6 {[%emt 0:02:09]} 11. O-O {[%emt 0:00:53]} Qa5 {[%emt 0:01:05]} 12. Rac1 {[%emt 0:03:25]} Rfc8 {[%emt 0:02:13]} 13. b3 {[%emt 0:01:21]} a6 {[%emt 0:03:01]} 14. Bf3 {[%emt 0:05:48]} Rab8 {[%emt 0:02:12]} 15. Nd5 {[%emt 0:03:14]} Bxd5 {[%emt 0:03:14]} 16. exd5 {[%emt 0:00:06]} Re8 {[%emt 0:13:28]} 17. Rc2 {[%emt 0:12:17]} Nd7 {[%emt 0:04:52]} 18. Bg4 {[%emt 0:06:29]} (18. Bxe7 $2 Bf6 19. Qf4 (19. b4 $2 Qxb4 20. Bxd6 Qxd6 $19) 19... Bxe7 $19 (19... Rxe7 $2 20. Qxd6 Rbe8 21. a3 $19)) 18... Ne5 {[%emt 0:07:31]} 19. Be2 {[%emt 0:00:52]} Nd7 {[%emt 0:13:05]} 20. Rb1 {[%emt 0:07:46]} (20. Bxe7 $2 Bf8 21. h4 (21. b4 $2 Qxb4 22. Bxd6 Bxd6 $19) 21... Rxe7 $19 (21... Bxe7 $2 22. h5 $19)) 20... Qb4 {[%emt 0:06:10]} 21. Qd2 {[%emt 0:17:02]} (21. Bxe7 $2 {too greedy.} Bf8 22. Qf4 (22. a3 $2 Qxa3 23. Qf4 Rxe7 $19) 22... Rxe7 $19 (22... Bxe7 $2 23. g3 $19)) 21... Qxd2 {[%emt 0:04:17]} 22. Bxd2 {[%emt 0:00:05]} Bd4 {[%emt 0:07:13]} 23. Kf1 {[%emt 0:00:05]} Rec8 {[%emt 0:01:39]} 24. Rbc1 {[%emt 0:01:57]} Rc7 {[%emt 0:06:48]} 25. g4 {[%emt 0:02:25]} b6 {[%emt 0:02:52]} 26. h4 {[%emt 0:01:05]} a5 {[%emt 0:00:26]} 27. Rd1 {[%emt 0:03:10]} Bg7 {[%emt 0:02:04]} 28. g5 {[%emt 0:03:14]} Ra8 {[%emt 0:05:06]} 29. Be3 {[%emt 0:03:18]} b5 {[%emt 0:00:50]} 30. c5 $1 {[%emt 0:00:59]} Nxc5 {[%emt 0:00:59]} 31. Bxb5 {[%emt 0:00:09]} Rb8 {[%emt 0:00:58]} 32. a4 {[%emt 0:04:02]} Na6 {[%emt 0:03:28]} ({Black should try} 32... Rcb7 $14) 33. Rcc1 $2 {[%emt 0:04:36]} (33. Rc6 $18 Rxc6 34. dxc6) 33... Rxc1 $14 {[%emt 0:00:48]} 34. Rxc1 {[%emt 0:00:04]} Nb4 {[%emt 0:02:56]} 35. Bd2 $1 {[%emt 0:00:24]} Bd4 {[%emt 0:01:15]} 36. Bxb4 {[%emt 0:00:19]} axb4 {[%emt 0:00:02]} 37. Rc7 {[%emt 0:00:27]} Kf8 {[%emt 0:01:29]} 38. Bc6 {[%emt 0:01:01]} Bb6 {[%emt 0:01:02]} 39. Rd7 {[%emt 0:00:05]} Bd8 {[%emt 0:01:07]} (39... Rc8 {was called for.} 40. Rb7 Bc5) 40. Ke2 $18 {[%emt 0:00:41]} Bb6 {[%emt 0:00:03]} 41. f4 {[%emt 0:30:20]} Rc8 {[%emt 0:22:32]} 42. Rb7 {[%emt 0:00:00]} Bc5 {[%emt 0:00:20] [#]} 43. Kd3 $1 {[%emt 0:00:00]} e6 $2 {[%emt 0:02:24]} (43... f6 44. gxf6 (44. a5 Ra8 $18) 44... exf6 45. Rxh7 Kg8) 44. Bd7 $18 {[%emt 0:00:00]} Rd8 {[%emt 0:00:45]} (44... Ra8 $142 45. dxe6 fxe6 46. Bxe6 Re8 47. Rf7+ Kg8) 45. dxe6 $18 {[%emt 0:00:00]} fxe6 {[%emt 0:00:56]} 46. Bxe6 {[%emt 0:00:00]} Re8 {[%emt 0:00:25]} 47. Rf7+ {[%emt 0:00:00]} Kg8 {[%emt 0:00:01]} 48. Re7+ {[%emt 0:00:00]} Kf8 {[%emt 0:00:02] [#]} 49. Rxe8+ $1 {[%emt 0:00:00]} Kxe8 {[%emt 0:00:02]} 50. a5 {[%emt 0:00:00]} Bf2 {[%emt 0:01:38]} 51. a6 {[%emt 0:00:00]} Kd8 {[%emt 0:00:32]} 52. Ke2 {[%emt 0:00:00]} Bc5 {[%emt 0:00:56]} 53. Bg8 {[%emt 0:00:00]} Ke7 {[%emt 0:00:32]} 54. Bxh7 {[%emt 0:00:00]} Kf7 {[%emt 0:00:05]} 55. f5 {[%emt 0:00:00]} gxf5 {[%emt 0:00:12]} 56. Bxf5 {[%emt 0:00:00]} 1-0

[Event "FIJ Cannes 2024"]
[Site "Cannes"]
[Date "2024.02.20"]
[Round "2.5"]
[White "Schmit, Vincent"]
[Black "Liu, Paul"]
[Result "1/2-1/2"]
[ECO "B33"]
[WhiteElo "2202"]
[BlackElo "1892"]
[Annotator "RC"]
[PlyCount "37"]
[EventDate "2024.02.20"]
[EventType "swiss"]
[EventCountry "FRA"]
[SourceTitle "playchess.com"]
[Source "ChessBase"]
[SourceQuality "1"]
[TimeControl "40/5400+30:1800+30"]

1. e4 {[%emt 1:31:00]} c5 {[%emt 1:31:00]} 2. Nf3 {[%emt 0:00:30]} Nc6 {[%emt 0:00:30]} 3. d4 {[%emt 0:00:30]} cxd4 {[%emt 0:00:30]} 4. Nxd4 {[%emt 0:00:30]} Nf6 {[%emt 0:00:30]} 5. Nc3 {[%emt 0:00:30]} e5 {[%emt 0:00:30]} 6. Ndb5 {[%emt 0:00:30]} d6 {[%emt 0:00:30]} 7. Bg5 {[%emt 0:00:30]} a6 {[%emt 0:00:30]} 8. Na3 {[%emt 0:00:30]} b5 {[%emt 0:00:30]} 9. Nd5 {[%emt 0:00:30]} Be7 {[%emt 0:00:30]} 10. Bxf6 {[%emt 0:00:30]} Bxf6 {[%emt 0:00:30]} 11. c3 {[%emt 0:00:30]} O-O {[%emt 0:00:30]} 12. Nc2 {[%emt 0:00:30]} Rb8 {[%emt 0:00:30]} 13. a4 {[%emt 0:00:30]} bxa4 {[%emt 0:00:30]} 14. Ncb4 {[%emt 0:00:30]} Nxb4 {[%emt 0:00:30]} 15. cxb4 {[%emt 0:00:30]} Bb7 {[%emt 0:00:30]} 16. Rxa4 {[%emt 0:00:30]} Qc8 {[%emt 0:00:30]} 17. Ra1 {[%emt 0:00:30]} Bxd5 {[%emt 0:00:30]} 18. Qxd5 {[%emt 0:00:30]} Rxb4 {[%emt 0:00:30]} 19. Bxa6 {[%emt 0:00:30]} 1/2-1/2

[Event "FIJ Cannes 2024"]
[Site "Cannes"]
[Date "2024.02.20"]
[Round "2.6"]
[White "Paoli, Noel"]
[Black "Roberts, Tallulah"]
[Result "0-1"]
[ECO "D00"]
[WhiteElo "1212"]
[BlackElo "1488"]
[Annotator "NA"]
[PlyCount "56"]
[EventDate "2024.02.20"]
[EventType "swiss"]
[EventCountry "FRA"]
[SourceTitle "playchess.com"]
[Source "ChessBase"]
[SourceQuality "1"]
[TimeControl "40/5400+30:1800+30"]

1. d4 {[%emt 0:00:08]} d5 {[%emt 0:00:02]} 2. Bf4 {[%emt 0:00:13]} Nf6 {[%emt 0:00:13]} 3. e3 {[%emt 0:00:26]} c5 {[%emt 0:00:28]} 4. c3 {[%emt 0:00:26]} Nc6 {[%emt 0:00:35]} 5. h3 {[%emt 0:01:30]} Qb6 {[%emt 0:03:04]} 6. Qb3 {[%emt 0:01:43]} c4 {[%emt 0:00:23]} 7. Qxb6 {[%emt 0:03:00]} axb6 {[%emt 0:00:02]} 8. Bc7 {[%emt 0:00:23]} b5 {[%emt 0:01:40]} 9. a3 {[%emt 0:02:59]} b4 {[%emt 0:00:24]} 10. Nd2 {[%emt 0:02:11]} bxc3 {[%emt 0:02:07]} 11. bxc3 {[%emt 0:00:27]} Bf5 {[%emt 0:01:58]} 12. Bb6 {[%emt 0:01:54]} e6 {[%emt 0:02:47]} 13. a4 {[%emt 0:03:14]} Bd6 {[%emt 0:03:24]} 14. Ngf3 {[%emt 0:01:39]} Nd7 {[%emt 0:01:46]} 15. Bc5 {[%emt 0:06:30]} Nxc5 {[%emt 0:00:28]} 16. dxc5 {[%emt 0:00:28]} Bxc5 {[%emt 0:00:26]} 17. Be2 {[%emt 0:00:19]} Bc2 {[%emt 0:04:08]} 18. O-O {[%emt 0:03:05]} Bxa4 {[%emt 0:03:16]} 19. Rfb1 {[%emt 0:00:21]} b6 {[%emt 0:00:37]} 20. Nd4 {[%emt 0:02:03]} Kd7 {[%emt 0:07:07]} 21. N2f3 {[%emt 0:01:50]} f6 {[%emt 0:02:14]} 22. Rb2 {[%emt 0:02:26]} Rhb8 {[%emt 0:02:04]} 23. Rba2 {[%emt 0:00:38]} b5 {[%emt 0:07:08]} 24. Nxb5 {[%emt 0:03:55]} Rxb5 {[%emt 0:00:20]} 25. Rxa4 {[%emt 0:00:27]} Rxa4 {[%emt 0:01:03]} 26. Rxa4 {[%emt 0:00:17]} Rb3 {[%emt 0:03:43]} 27. Nd4 {[%emt 0:00:27]} Rxc3 {[%emt 0:01:05]} 28. Bg4 {[%emt 0:02:23]} Nxd4 {[%emt 0:02:16]} 0-1